Cogmind - Beta 9.6 @@@ ROGUE MODE // 2020.07.28 @ 01:50:36 // Winter2019/RPGLIKE Player: FontPeg Result: Core destroyed Performance ------------- Evolutions (2) 1000 Regions Visited (3) 600 Robots Destroyed (21) 105 Value Destroyed (567) 567 Prototype IDs (1) 20 Alien Tech Used (0) 0 Bonus (0) 0 TOTAL SCORE: 2292 Bonus ------- None Cogmind --------- Core Integrity 0/600 Matter 400/400 Energy 4/175 System Corruption 0% Temperature Cool (651) Movement Flying (117) Ox1 Location -8/Materials Parts ------- > --- POWER (1) -------- Light Ion Engine > --- PROPULSION (3) --- Flight Unit Flight Unit > --- UTILITY (3) ------ Targeting Computer ECM Suite > --- WEAPON (2) ------- Plasma Cannon Plasma Cannon > --- INVENTORY (2) ---- Grenade Launcher Improved Datajack Peak State ------------ > --- POWER ------------ Light Ion Engine > --- PROPULSION ------- Flight Unit Flight Unit > --- UTILITY ---------- Targeting Computer ECM Suite Light Armor Plating > --- WEAPON ----------- Heavy Particle Gun Heavy Particle Gun > --- INVENTORY -------- Grenade Launcher Improved Datajack [Rating: 14] Favorites ----------- Power Light Ion Engine Engine Light Ion Engine Propulsion Flight Unit Wheel Wheel Flight Unit Flight Unit Utility Targeting Computer Device ECM Suite Processor Targeting Computer Protection Light Armor Plating Weapon Assault Rifle Energy Gun Heavy Particle Gun Energy Cannon Plasma Cannon Ballistic Gun Assault Rifle Ballistic Cannon Improved Light Cannon Launcher Grenade Launcher Build | -11 -10 -9 -8 ------- Run | Scr Mat Mat Mat Slots Evolved 5 | 3 . 1 1 Power . | . . . . Propulsion 2 | 1 . 1 . Utility 2 | 1 . . 1 Weapon 1 | 1 . . . Parts Attached 23 | 6 6 8 3 Power 1 | 1 . . . Engine 1 | 1 . . . Core . | . . . . Reactor . | . . . . Propulsion 7 | 2 3 2 . Treads . | . . . . Leg . | . . . . Wheel 2 | 2 . . . Hover . | . . . . Flight 5 | . 3 2 . Utility 5 | . 3 1 1 Device 1 | . . . 1 Storage . | . . . . Processor 1 | . 1 . . Hackware . | . . . . Protection 3 | . 2 1 . Artifact . | . . . . Weapon 10 | 3 . 5 2 Energy Gun 2 | . . 2 . Energy Cannon 2 | . . . 2 Ballistic Gun 4 | 3 . 1 . Ballistic Cannon 1 | . . 1 . Launcher 1 | . . 1 . Special Weapon . | . . . . Impact Weapon . | . . . . Slashing Weapon . | . . . . Piercing Weapon . | . . . . Special Melee Weapon . | . . . . Unidentified Prototypes 1 | . . 1 . Parts Lost 1 | . . . 1 Power . | . . . . Propulsion . | . . . . Utility 1 | . . . 1 Weapon . | . . . . Highest Loss Streak 1 | . . . 1 Average Slot Usage (%) 90 | . 86 96 87 Engine 12 | . 14 13 11 Wheel 2 | . 9 . . Flight 23 | . 18 27 22 Device 4 | . . . 10 Processor 10 | . 6 13 11 Protection 11 | . 8 13 10 Energy Gun 3 | . . 1 6 Energy Cannon 6 | . . . 15 Ballistic Gun 12 | . 28 17 . Ballistic Cannon 2 | . . 6 . Naked Turns . | . . . . Heaviest Build 21 | 7 10 12 21 Greatest Support 20 | 20 20 13 13 Greatest Overweight (x) 1 | . 1 1 1 Average Overweight (x) . | . . . . Largest Inventory Capacity 2 | 2 2 2 2 Average Capacity 1 | 1 2 2 2 Most Carried 2 | 2 2 2 2 Average Carried 1 | 1 1 1 2 Final Capacity 2 | 2 2 2 2 Final Carried 2 | 1 2 2 2 Class Distribution -------------------- 100% | Mutant Dominant Class ---------------- Mutant | -10/Materials Mutant | -9/Materials Mutant | -8/Materials Resources | -11 -10 -9 -8 ----------- Run | Scr Mat Mat Mat Matter Collected 779 | 260 156 253 110 Remotely . | . . . . Salvage Created 719 | . 169 305 245 Parts 43 | . 14 18 11 Haulers Intercepted . | . . . . Recyclers Shooed 3 | . . 3 . Parts Field Recycled . | . . . . Retrieved Matter . | . . . . Parts Self-Destructed . | . . . . Prevented . | . . . . Kills | -11 -10 -9 -8 ------- Run | Scr Mat Mat Mat Combat Hostiles Destroyed 17 | . 6 7 4 Guns 9 | . 6 2 1 Cannons 7 | . . 4 3 AOE 1 | . . 1 . Classes Destroyed 7 | . 3 2 2 Worker 1 | . . . 1 Recycler 2 | . . 1 1 Watcher 1 | . 1 . . Swarmer 5 | . 3 . 2 Grunt 6 | . 3 3 . Brawler 1 | . . . 1 Sentry 5 | . . 4 1 Best Kill Streak 4 | . 4 4 3 Combat Bots Only 4 | . 3 4 3 Max Kills in Single Turn 1 | . 1 1 1 Gunslinging . | . . . . Exploded 1 | . . 1 . Melee . | . . . . Uniques/NPCs Destroyed . | . . . . Combat | -11 -10 -9 -8 -------- Run | Scr Mat Mat Mat Damage Taken 1217 | . 114 237 866 Core 936 | . 87 160 689 Absorbed by Shields . | . . . . Redirected to Core 506 | . 53 144 309 Core Remaining (%) 97 | 100 92 100 . Volleys Fired 59 | . 16 23 20 Largest 2 | . 2 2 2 Hottest 160 | . 40 110 160 Shots Fired 105 | . 32 42 31 Gun 67 | . 32 27 8 Cannon 35 | . . 12 23 Launcher 3 | . . 3 . Special . | . . . . Kinetic 69 | . 32 37 . Thermal 33 | . . 2 31 Explosive 3 | . . 3 . Electromagnetic . | . . . . Robot Hit Streak 12 | . 12 11 5 Robot Miss Streak 5 | . 5 1 5 Penetration Max . | . . . . Secondary Targets . | . . . . Shots Hit Robots 63 | . 20 28 15 Core Hits 30 | . 11 11 8 Critical Hits . | . . . . Critical Kills . | . . . . Critical Parts Destroyed . | . . . . Melee Attacks . | . . . . Impact . | . . . . Slashing . | . . . . Piercing . | . . . . Sneak Attacks . | . . . . Combat Hostiles . | . . . . Follow-up Attacks . | . . . . Damage Inflicted 1408 | . 301 716 391 Guns 691 | . 301 278 112 Cannons 492 | . . 213 279 Explosions 225 | . . 225 . Melee . | . . . . Ramming . | . . . . Kinetic 771 | . 301 470 . Thermal 412 | . . 21 391 Explosive 225 | . . 225 . Electromagnetic . | . . . . Impact . | . . . . Slashing . | . . . . Piercing . | . . . . Highest Corruption . | . . . . Average Corruption . | . . . . Corruption Purged . | . . . . Overload Shots . | . . . . Overflow Damage 13 | . . . 13 Projectiles 13 | . . . 13 Explosions . | . . . . Melee . | . . . . Knockbacks 5 | . . 5 . Impact . | . . . . Kinetic 4 | . . 4 . Secondary 1 | . . 1 . Self-Inflicted Damage . | . . . . Shots . | . . . . Rammed . | . . . . Targets Rammed . | . . . . Kicked . | . . . . Crushed . | . . . . Highest Temperature 724 | . 8 148 724 Average Temperature 153 | . 4 50 236 Received Heat Transfer 312 | . 42 117 153 Effects 27 | . . . 27 Shutdowns 3 | . . . 3 Energy Bleed 4 | . . . 4 Interference 8 | . . . 8 Matter Decay 3 | . . . 3 Damage (minor) 1 | . . . 1 Damage (major) 5 | . . . 5 Damage (core) 3 | . . . 3 Siege Activations . | . . . . Robots Corrupted . | . . . . Combat Hostiles . | . . . . Parts Fried . | . . . . Impact Corruptions . | . . . . Robots Melted . | . . . . Combat Hostiles . | . . . . Parts Melted 1 | . . . 1 Heat Transferred 809 | . . 37 772 Parts Sabotaged . | . . . . Parts Stolen . | . . . . Parts Stripped . | . . . . Power Chain Reactions . | . . . . Missiles Intercepted . | . . . . Alert | -11 -10 -9 -8 ------- Run | Scr Mat Mat Mat Peak Influence 363 | . 217 363 344 Average Influence 186 | . 109 227 220 Maximum Alert Level 1 | . 1 1 1 Low Security (%) 44 | 100 78 42 19 Level 1 55 | . 21 57 80 Level 2 . | . . . . Level 3 . | . . . . Level 4 . | . . . . Level 5 . | . . . . High Security . | . . . . Max Security . | . . . . Squads Dispatched 4 | . 3 . 1 Investigation . | . . . . Extermination . | . . . . Reinforcement 4 | . 3 . 1 Assault . | . . . . Garrison . | . . . . Intercept . | . . . . Construction Impeded . | . . . . Haulers Reinforced . | . . . . Stealth | -11 -10 -9 -8 --------- Run | Scr Mat Mat Mat Distress Signals 3 | . . 2 1 Communications Jammed . | . . . . Distress Signals . | . . . . Times Spotted 35 | . 10 11 14 Peak Tracking Total 8 | . 3 5 8 Tactical Retreats 2 | . . . 2 Traps | -11 -10 -9 -8 ------- Run | Scr Mat Mat Mat Traps Triggered 1 | . . 1 . Indirectly . | . . . . Trap Hack Attempts . | . . . . Triggered . | . . . . Disarmed . | . . . . Reprogrammed . | . . . . Reused . | . . . . Traps Extracted . | . . . . Installed . | . . . . Triggered . | . . . . Machines | -11 -10 -9 -8 ---------- Run | Scr Mat Mat Mat Machines Disabled 1 | . . . 1 Max in Single Turn 1 | . . . 1 Machines Sabotaged . | . . . . Garrisons Compromised . | . . . . Overloaded Fab Kills . | . . . . Fab Network Shutdowns . | . . . . Hacking | -11 -10 -9 -8 --------- Run | Scr Mat Mat Mat Machines Accessed 4 | . . 2 2 Terminals 4 | . . 2 2 Fabricators . | . . . . Repair Stations . | . . . . Recycling Units . | . . . . Scanalyzers . | . . . . Garrison Access . | . . . . Total Hacks 9 | . . 5 4 Successful 8 | . . 5 3 Failed 1 | . . . 1 Catastrophic . | . . . . Database Lockouts . | . . . . Manual 9 | . . 5 4 Terminals 9 | . . 5 4 Fabricators . | . . . . Repair Stations . | . . . . Recycling Units . | . . . . Scanalyzers . | . . . . Garrison Access . | . . . . Terminal Hacks . | . . . . Fabricator Hacks . | . . . . Repair Station Hacks . | . . . . Recycling Unit Hacks . | . . . . Scanalyzer . | . . . . Garrison Access Hacks . | . . . . Unauthorized Hacks 7 | . . 4 3 Terminals 7 | . . 4 3 Track 3 | . . 2 1 Botnet 4 | . . 2 2 Fabricators . | . . . . Repair Stations . | . . . . Recycling Units . | . . . . Scanalyzers . | . . . . Garrison Access . | . . . . Data Cores Recovered . | . . . . Used . | . . . . Hacking Detections 3 | . . 1 2 Full Trace Events . | . . . . Feedback Events . | . . . . Feedback Blocked . | . . . . Robot Schematics Acquired . | . . . . Robots Built . | . . . . Matter . | . . . . Time . | . . . . Total Robot Build Rating . | . . . . Part Schematics Acquired . | . . . . Parts Built . | . . . . Matter . | . . . . Time . | . . . . Total Part Build Rating . | . . . . Parts Repaired . | . . . . Time . | . . . . Parts Recycled . | . . . . Recycled Matter . | . . . . Retrieved Matter . | . . . . Retrieved Components . | . . . . Parts Scanalyzed . | . . . . Part Schematics Acquired . | . . . . Parts Damaged . | . . . . Bothacking | -11 -10 -9 -8 ------------ Run | Scr Mat Mat Mat Used RIF Installer . | . . . . Robots Hacked . | . . . . Non-combat . | . . . . Combat . | . . . . Robot Hacks Applied . | . . . . Relay Couplers Released . | . . . . Robots Rewired . | . . . . Allies Hacked . | . . . . Hacks Repelled . | . . . . Allies | -11 -10 -9 -8 -------- Run | Scr Mat Mat Mat Total Allies . | . . . . Largest Group . | . . . . Highest-Rated Group . | . . . . Highest-Rated Ally . | . . . . Total Orders . | . . . . Ally Attacks . | . . . . Total Damage . | . . . . Kills . | . . . . Allies Corrupted . | . . . . Allies Melted . | . . . . Intel | -11 -10 -9 -8 ------- Run | Scr Mat Mat Mat Robot Analysis Total . | . . . . Derelict Logs Recovered . | . . . . Drone Launches . | . . . . Drone Recoveries . | . . . . Exploration | -11 -10 -9 -8 ------------- Run | Scr Mat Mat Mat Turns Passed 744 | 38 166 254 286 Spaces Moved 726 | 35 152 301 238 Core 1 | 1 . . . Treads . | . . . . Legs . | . . . . Wheels 83 | 34 49 . . Hover . | . . . . Flight 642 | . 103 301 238 Fastest Speed 37 | 50 37 37 37 Average Speed 61 | 79 66 40 82 Slowest Speed 120 | 80 120 117 117 Overloaded Moves . | . . . . Propulsion Burnouts . | . . . . Robots Hopped 2 | . . 2 . Cave-ins Triggered . | . . . . Exploration Rate (%) 20 | 3 28 24 25 Regions Visited 3 Branch Regions . Pre-discovered Areas . | . . . . Known Exits Taken . | . . . . Unknown Exits Taken 3 | 1 1 1 . Scrap Searched . | . . . . Spaces Dug . | . . . . Terrain Destroyed 33 | . . 23 10 Melee . | . . . . Projectile 10 | . . . 10 AOE 23 | . . 23 . Actions | -11 -10 -9 -8 --------- Run | Scr Mat Mat Mat Total 913 | 43 185 388 297 Wait 71 | . 4 35 32 Move 719 | 34 151 296 238 Hop 2 | . . 2 . Pick Up 6 | 2 1 3 . Fast Attach 16 | 4 5 4 3 Attach 2 | 1 . 1 . Detach . | . . . . Swap 5 | 1 1 3 . Drop 12 | 1 4 5 2 Fire 59 | . 16 23 20 Melee . | . . . . Ram . | . . . . Kick . | . . . . Crush . | . . . . Escape Stasis . | . . . . Rewire . | . . . . Trap . | . . . . Miscellaneous 21 | . 3 16 2 Route ------- -11/Scrapyard -10/Materials -9/Materials -8/Materials History --------- Turn | Location | Event 5 | -11/Scrapyard | Upgraded with Propulsion slot (x1) 5 | -11/Scrapyard | Upgraded with Utility slot (x1) 5 | -11/Scrapyard | Upgraded with Weapon slot (x1) 14 | -11/Scrapyard | Discovered new exit (range 17) 39 | -11/Scrapyard | Entered Materials 176 | -10/Materials | Discovered new exit (range 13) 205 | -10/Materials | Entered another Materials area 207 | -9/Materials | Reached level 2 302 | -9/Materials | Build established: Mutant 386 | -9/Materials | Reached level 3 406 | -9/Materials | Upgraded with Propulsion slot (x1) 437 | -9/Materials | Discovered new exit (range 18) 459 | -9/Materials | Entered another Materials area 461 | -8/Materials | Reached level 4 463 | -8/Materials | Upgraded with Utility slot (x1) 723 | -8/Materials | Core integrity fell below 50% 731 | -8/Materials | Core integrity fell below 20% 746 | -8/Materials | Core destroyed Last Messages --------------- 00731_ Overheating: Core damaged (-90). 00732_ Power failure, Lgt. Ion Engine shutdown. 00733_ Overheating: ECM Suite damaged (-14). 00733_ Overheating: Lgt. Ion Engine damaged (-7). 00733_ Processing Tank disabled. 00734_ Overheating: Flight Unit damaged (-8). 00735_ Overheating: Energy bleed (-3). 00737_ Overheating: Matter decay (-76). 00737_ Used Protomatter to restore core integrity (+42, depleted) 00737_ Lgt. Armor Plating destroyed. 00737_ U-05 Engineer builds a Wall. 00738_ Overheating: Matter decay (-96). 00739_ Overheating: Energy bleed (-1). 00740_ Overheating: System interference. 00740_ Plasma Cannon temporarily disabled. 00741_ Overheating: Energy bleed (-3). 00743_ Destroyed Particle Gun. 00744_ Power failure, Lgt. Ion Engine shutdown. 00744_ Overheating: Matter decay (-80). 00746_ Overheating: Core damaged (-78). Map ----- +----------------------------------------------------+ | """ #= R"#]] """"" #??????###?????? | | # """ """##### k""""" #???? #?????? | | # """ ###????# """ #?? #?????? | | # """ ######## # #?????? | | ###### #] ! + [ + k #?????? | | ?????# # # # """ #?????? | | ?????# # """ ####"T"### #??""""" #?????? | | ?????# # """ #??#####?#k#????""" ??????? | | ?????######## *+%""" #????????#w#??????"???????? | | ????????????# #! #????????# #??????????????? | | ????????????# ########???######+####???????????? | | ????????????# #??????????# ! #???????????? | | ????????????# #??????????# #???????????? | | ????????????# #??????????# !! ##??????????? | | ????????????# #??????????# !! "#??????????? | | ????????????# #???k?????## ! ##??????????? | | ????????????# #?????????## #???????????? | | ????????????# #?????????## ##??????????? | | ????????????# #??????????# ! "#??????????? | | ???????????? ###+###########+########+### #? | | ???????????? #? | | ???????????? +? | | ???????????? #? | | ???????????# ############## ############# #? | | ???????????######?############# #??????????????? | | ??????????????????# =%@ * # #??????????????? | | ??????????????????# "" su "" +% #??????????????? | | ??????????????????# "" g""" # = #??????????????? | | ??????????????????# "T [ """ #*% #??????????????? | | ??????????????????# "" """uu# = #??????????????? | | ??????????????????# "" """ # "#?????????????? | | ??????????????????# # ##?????????????? | | ??????????????????############# #??????????????? | | ??????????????????????????????# #??????????????? | | ?????????????????????????????? #??????????????? | | ?????????????????????????????? #??????????????? | | ??????????????????????????????" #??????????????? | | ??????????????????????????????"" #??????????????? | | ??????????????????????????????"" #??????????????? | | ??????????????????????????????"" #??????????????? | | ???????????????????????????????? #??????????????? | | ???????????????????????????????? ??????????????? | | ???????????????????????????????? ??????????????? | | ???????????????????????????????? ???????????????? | | ?????????????????????????????????????????????????? | | ?????????????????????????????????????????????????? | | ?????????????????????????????????????????????????? | | ?????????????????????????????????????????????????? | | ?????????????????????????????????????????????????? | | ?????????????????????????????????????????????????? | +----------------------------------------------------+ Best States ------------- Heat Dissipation 25 Energy Generation 10 Energy Capacity 175 Matter Stores 400 Matter Capacity 400 Sight Range 18 Terrain Scan Density 10 ECM Strength 1 Armor Coverage 150 Resistance: KI 10 Resistance: TH 10 Resistance: EX 15 Weapon Shielding 33 Evasion (%) 62 Targeting Accuracy 5 Offensive Hacking 10 Item Schematics ----------------- None Robot Schematics ------------------ None Fabricated ------------ Nothing Alien Tech Used ----------------- None Achievements -------------- None Challenges ------------ None RPGLIKE | -11 -10 -9 -8 --------- Run | Scr Mat Mat Mat Levels Raised 3 | . . 2 1 XP Earned 8360 | 3000 785 2450 2125 XP Spent 7175 | 3000 . 2975 1200 Upgrades 22 | 10 . 10 2 Propulsion Slot 2 | 1 . 1 . Utility Slot 2 | 1 . . 1 Weapon Slot 1 | 1 . . . Energy Storage 1 | . . 1 . Matter Storage 2 | . . 2 . Mass Support 1 | . . 1 . Inventory Capacity 2 | 2 . . . Sight Range 2 | 1 . 1 . Hack Attack % 2 | 1 . . 1 KI Resistance % 2 | 1 . 1 . TH Resistance % 2 | 1 . 1 . EX Resistance % 3 | 1 . 2 . Protomatter Created 198 | . 77 107 14 Integrity Restored 401 | . 48 311 42 Core 289 | . 39 208 42 Parts 112 | . 9 103 . Protomatter Decayed 60 | . 60 . . Game ------ Seed ProcessingMeleeNanovents Manual? 0 Play Time 00:19:47 Cumulative 59.0 hours Start 2020.07.28 @ 01:34:21 End 2020.07.28 @ 01:50:36 Sessions 1 Manual Loads 0 Difficulty Rogue Special Mode Winter2019/RPGLIKE Game No. 86 Rogue 86 Adventurer 0 Explorer 0 Win Type - Total 0 Types 0/0/0/0/0/0/0 Lore% 34 Gallery% 43 Achievement% 35 Wizard Run 0 Options --------- ASCII 0 Keyboard 0 Movement Mouse Keybinds 0 Fullscreen 2 Font 18/X11 Map View 76x50 Tactical HUD 1 Map Filters NONE Filters NONE Steam 1 RUN: d47f8d3a-bef2-4212-adb0-0864edd37410